lending/lending_fUSD_20250425
["ID","MTS","AMOUNT","RATE_DAILY","PERIOD"]
[358966274,1745592655382,-500.0,0.00035616,2]
[358966276,1745592655391,-584.95,0.00035616,2]
[358966278,1745592655400,-1787.39327346,0.00035616,2]
[358966280,1745592655412,-3507.33335456,0.00035616,2]
[358967131,1745592933026,9993.81610906,0.000378,120]
[358967132,1745593122208,1999.4772619,0.00037,120]
[358967133,1745593272702,500.0,0.00035616,120]
[358967134,1745593272955,500.0,0.0003589,120]
[358967135,1745593273215,500.0,0.00036164,120]
[358967136,1745593273455,500.0,0.00036438,120]
[358967137,1745593273709,500.0,0.00036712,120]
[358967138,1745593273948,500.0,0.00036986,120]
[358967139,1745593274193,500.0,0.0003726,120]
[358967140,1745593274444,207.9272627,0.00037534,120]
[358967142,1745593327213,2000.0,0.000378,60]
[358967144,1745593429848,10000.0,0.00037808,60]
[358967145,1745593449714,10000.0,0.00037808,60]
[358967146,1745593487232,1876.0,0.00037808,60]
[358967619,1745593579032,250.0,0.00017,2]
[358967620,1745593580097,300.0,0.00019,2]
[358967621,1745593593005,5000.0,0.00037808,60]
[358968398,1745593718263,19976.25334,0.000378,60]
[358968436,1745593832528,-357.0,0.00023,2]
[358968437,1745593832538,-45.1654592,0.00023288,2]
[358968438,1745593832563,-311.8345408,0.00023288,2]
[358968439,1745593832573,-357.0,0.00023562,2]
[358968440,1745593832583,-150.0,0.000238,2]
[358968441,1745593832592,-352.05880368,0.000238,2]
[358968442,1745593832606,-147.94119632,0.000238,2]
[358968443,1745593832616,-357.0,0.00023836,2]
[358968444,1745593832626,-76.83138014,0.0002411,2]
[358968445,1745593832638,-280.16861986,0.0002411,2]
[358968446,1745593832649,-357.0,0.00024164,2]
[358968447,1745593832659,-357.0,0.00025373,2]
[358968448,1745593832668,-370.0,0.00025373,2]
[358968449,1745593832681,-357.0,0.00026388,2]
[358968450,1745593832692,-357.0,0.00026581,2]
[358968451,1745593832703,-357.0,0.00027402,2]
[358968452,1745593832714,-357.0,0.00027789,2]
[358968453,1745593832725,-357.0,0.00028417,2]
[358968455,1745593832735,-357.0,0.00028997,2]
[358968456,1745593832745,-357.0,0.00029432,2]
[358968457,1745593832754,-105.46349862,0.00030447,2]
[358968458,1745593832800,-251.53650138,0.00030447,2]
[358968459,1745593832811,-626.52217864,0.00032234,3]
[358968460,1745593832823,-840.47782136,0.00032234,3]
[358968461,1745593832832,-317.0,0.00032234,2]
[358968462,1745593832841,-400.0,0.00032234,3]
[358968463,1745593832853,-789.13,0.00032235,2]
[358968464,1745593832863,-5228.0,0.000335,5]
[358968465,1745593832872,-1422.86158343,0.00033766,2]
[358968466,1745593832881,-153.58,0.00033863,2]
[358968467,1745593832890,-4846.35,0.00033886,2]
[358968468,1745593832900,-203.36481296,0.000339,11]
[358968470,1745593832909,-174.87,0.00033918,2]
[358968472,1745593832919,-181.72,0.0003393,2]
[358968474,1745593832930,-473.6668589,0.00034,2]
[358968476,1745593832939,-250.0,0.00034011,2]
[358968478,1745593832949,-3700.59,0.00034054,2]
[358968479,1745593832958,-150.0,0.0003408,7]
[358968480,1745593832969,-321.7703612,0.00034095,4]
[358968481,1745593832981,-1000.0,0.00034268,2]
[358968482,1745593832990,-150.0,0.000343,7]
[358968483,1745593833000,-184.04,0.00034308,2]
[358968484,1745593833010,-1719.85,0.00034428,2]
[358968485,1745593833021,-158.43,0.00034441,2]
[358968486,1745593833032,-789.13,0.00034499,2]
[358968487,1745593833042,-7963.11,0.00034558,2]
[358968488,1745593833057,-150.99,0.00034558,2]
[358968489,1745593833067,-7376.44,0.00034558,2]
[358968490,1745593833077,-898.12108993,0.00034558,4]
[358968491,1745593833088,-204.0,0.00034661,3]
[358968492,1745593833099,-203.36481296,0.00034686,12]
[358968493,1745593833113,-359.27,0.0003469,30]
[358968494,1745593833124,-779.63752826,0.00034738,6]
[358968495,1745593833134,-377.61,0.000348,31]
[358968496,1745593833145,-377.61,0.000348,31]
[358968497,1745593833156,-377.61,0.000348,31]
[358968498,1745593833167,-377.61,0.000348,31]
[358968499,1745593833178,-377.61,0.000348,31]
[358968500,1745593833189,-377.61,0.000348,31]
[358968501,1745593833200,-377.61,0.000348,31]
[358968502,1745593833210,-377.61,0.000348,31]
[358968503,1745593833221,-377.61,0.000348,31]
[358968504,1745593833231,-377.61,0.000348,31]
[358968505,1745593833242,-377.61,0.000348,31]
[358968517,1745593833356,-377.61,0.000348,31]
[358968519,1745593833367,-166.5,0.00034989,2]
[358968521,1745593833377,-3865.3164,0.00035416,2]
[358968523,1745593833388,-203.36481296,0.00035471,12]
[358968525,1745593833399,-787.60670134,0.00035496,2]
[358968528,1745593833413,-9853.33589866,0.00035496,2]
[358968530,1745593833423,-182.9261,0.00035496,2]
[358968531,1745593833434,-4141.3745,0.00035506,2]
[358968532,1745593833444,-344.3544,0.00035506,2]
[358968533,1745593833453,-480.5637,0.00035506,2]
[358968534,1745593833464,-166.71631844,0.00035506,2]
[358968535,1745593833474,-162.74314778,0.00035506,2]
[358968536,1745593833484,-616.7747,0.00035516,2]
[358968537,1745593833494,-1972.7238,0.00035516,2]
[358968538,1745593833504,-39204.0816,0.00035516,2]
[358968539,1745593833514,-245.31754913,0.00035516,8]
[358968540,1745593833524,-256.75651797,0.00035516,9]
[358968541,1745593833535,-892.801,0.00035576,42]
[358968542,1745593833546,-207.4,0.00035585,2]
[358968543,1745593833556,-165.87,0.00035586,2]
[358968544,1745593833566,-249.08403276,0.00035595,7]
[358968545,1745593833577,-253.65167398,0.00035595,7]
[358968546,1745593833586,-491.71441732,0.00035595,7]
[358968547,1745593833596,-240.32496479,0.00035595,7]
[358968548,1745593833612,-172.93988593,0.00035595,7]
[358968549,1745593833622,-232.02827312,0.00035595,7]
[358968551,1745593833633,-567.80530442,0.00035595,7]
[358968553,1745593833642,-165.87,0.00035595,2]
[358968555,1745593833652,-165.87,0.00035595,2]
[358968557,1745593833662,-33759.6601791,0.00035596,2]
[358968558,1745593833674,-728.10303614,0.00035596,2]
[358968562,1745593833710,-670.41993916,0.00035596,2]
[358968565,1745593833722,-19157.8,0.00035596,2]
[358968567,1745593833735,-435.51929983,0.00035596,2]
[358968569,1745593833748,-2628.0,0.00035596,2]
[358968573,1745593833778,-315.2126446,0.00035596,2]
[358968664,1745593838335,-28617.66895597,0.00035596,2]
[358968665,1745593838346,-165.87,0.00035596,2]
[358968666,1745593838356,-165.87,0.00035596,2]
[358968667,1745593838366,-165.87,0.00035596,2]
[358968668,1745593838376,-1312.241999,0.000356,2]
[358968669,1745593838387,-86312.3840548,0.00035606,2]
[358968670,1745593838399,-28346.8809792,0.00035606,2]
[358968671,1745593838411,-369.57250999,0.00035606,2]
[358968672,1745593838421,-74447.9149293,0.00035606,2]
[358968673,1745593838489,-19126.39999999,0.00035606,2]
[358968779,1745593840570,-4040.00760305,0.00035606,2]
[358968780,1745593840583,-585.4326523,0.00035606,2]
[358968781,1745593840759,-2637.576777,0.00035606,2]
[358969103,1745593844129,-1529.79539788,0.00035606,2]
[358969124,1745593844324,-26493.47,0.00035606,2]
[358969125,1745593844337,-5774.74060123,0.00035606,2]
[358969130,1745593844508,-2252.87192783,0.00035606,2]
[358969147,1745593846278,-2427.45109226,0.00035606,2]
[358969148,1745593846350,-758.452,0.00035606,2]
[358969149,1745593846364,-904.44999998,0.00035606,2]
[358969150,1745593846413,-182692.87722418,0.00035606,2]
[358969151,1745593846424,-481896.976646,0.00035606,2]
[358969152,1745593846434,-157754.98157189,0.00035616,2]
[358969153,1745593846444,-384.90139251,0.00035616,2]
[358969154,1745593846453,-383.32851248,0.00035616,2]
[358969155,1745593846463,-514.71457788,0.00035616,2]
[358969156,1745593846473,-500.0,0.00035616,2]
[358969157,1745593846483,-500.0,0.00035616,2]
[358969158,1745593846493,-500.0,0.00035616,2]
[358969159,1745593846503,-503.7897896,0.00035616,2]
[358969160,1745593846512,-412.79570467,0.00035616,2]
[358969161,1745593846522,-500.0,0.00035616,2]
[358969163,1745593846532,-513.39571395,0.00035616,2]
[358969165,1745593846542,-500.0,0.00035616,2]
[358969167,1745593846553,-500.0,0.00035616,2]
[358969169,1745593846562,-500.0,0.00035616,2]
[358969171,1745593846572,-325.90996746,0.00035616,2]
[358969173,1745593846582,-507.34240861,0.00035616,2]
[358969175,1745593846591,-163.64299581,0.00035616,2]
[358969177,1745593846601,-500.0,0.00035616,2]
[358969179,1745593846611,-500.0,0.00035616,2]
[358969181,1745593846622,-290.85297444,0.00035616,2]
[358969183,1745593846631,-500.0,0.00035616,2]
[358969185,1745593846641,-408.69085565,0.00035616,2]
[358969187,1745593846651,-500.0,0.00035616,2]
[358969189,1745593846662,-500.0,0.00035616,2]
[358969191,1745593846671,-500.0,0.00035616,2]
[358969193,1745593846681,-500.0,0.00035616,2]
[358969195,1745593846691,-481.25786437,0.00035616,2]
[358969197,1745593846701,-500.0,0.00035616,2]
[358969199,1745593846711,-393.98068419,0.00035616,2]
[358969203,1745593846734,-106.01931581,0.00035616,2]
[358969205,1745593846743,-465.40041987,0.00035616,2]
[358969209,1745593846780,-34.59958013,0.00035616,2]
[358969210,1745593846790,-500.0,0.00035616,2]
[358969211,1745593846800,-500.0,0.00035616,2]
[358969212,1745593846809,-500.0,0.00035616,2]
[358969213,1745593846819,-500.0,0.00035616,2]
[358969214,1745593846829,-205.70041987,0.00035616,2]
[358969215,1745593846841,-294.29958013,0.00035616,2]
[358969216,1745593846851,-500.0,0.00035616,2]
[358969217,1745593846862,-500.0,0.00035616,2]
[358969218,1745593846872,-500.0,0.00035616,2]
[358969219,1745593846882,-500.0,0.00035616,2]
[358969220,1745593846892,-500.0,0.00035616,2]
[358969221,1745593846902,-500.0,0.00035616,2]
[358969222,1745593846912,-675.21,0.00035616,2]
[358969223,1745593846923,-33.51415912,0.00035616,2]
[358969224,1745593846939,-466.48584088,0.00035616,2]
[358969225,1745593846949,-500.0,0.00035616,2]
[358969226,1745593846959,-272.43885912,0.00035616,2]
[358969227,1745593846971,-227.56114088,0.00035616,2]
[358969228,1745593846982,-547.40449411,0.00035616,2]
[358969229,1745593846994,-548.23729602,0.00035616,2]
[358969230,1745593847005,-500.0,0.00035616,2]
[358969231,1745593847014,-500.0,0.00035616,2]
[358969232,1745593847025,-500.0,0.00035616,2]
[358969233,1745593847035,-537.18,0.00035616,2]
[358969234,1745593847046,-500.0,0.00035616,2]
[358969235,1745593847056,-559.91,0.00035616,2]
[358969236,1745593847066,-500.0,0.00035616,2]
[358969237,1745593847076,-518.19,0.00035616,2]
[358969238,1745593847086,-56.82093075,0.00035616,2]
[358969239,1745593847100,-534.98906925,0.00035616,2]
[358969240,1745593847109,-0.04507464,0.00035616,2]
[358969422,1745593922347,200.0,0.0002849,117]
[358969423,1745593922421,200.0,0.00029998,117]
[358969424,1745593922514,200.0,0.000325,117]
[358969425,1745594041449,200.0,0.0002849,117]
[358969426,1745594164692,30456.73810248,0.00019976,2]
[358969427,1745594381546,1000.0,0.00037808,60]
[358969430,1745594708094,10000.0,0.0002,2]
[358969431,1745594708122,10000.0,0.0002,2]
[358969432,1745594708152,10000.0,0.0002,2]
[358969433,1745594708177,10000.0,0.0002,2]
[358969434,1745594708202,10000.0,0.0002,2]
[358969435,1745594708229,10000.0,0.0002,2]
[358969436,1745594708260,10000.0,0.0002,2]
[358969437,1745594708287,10000.0,0.0002,2]
[358969438,1745594708314,10000.0,0.0002,2]
[358969439,1745594708339,10000.0,0.0002,2]
[358969440,1745594708365,10000.0,0.0002,2]
[358969441,1745594708392,10000.0,0.0002,2]
[358969442,1745594708417,10000.0,0.0002,2]
[358969443,1745594708443,10000.0,0.0002,2]
[358969444,1745594708468,10000.0,0.0002,2]
[358969445,1745594708492,10000.0,0.0002,2]
[358969446,1745594708518,10000.0,0.0002,2]
[358969447,1745594708542,10000.0,0.0002,2]
[358969448,1745594708566,10000.0,0.0002,2]
[358969449,1745594708590,10000.0,0.0002,2]
[358969450,1745594708613,10000.0,0.0002,2]
[358969451,1745594708638,10000.0,0.0002,2]
[358969452,1745594708662,10000.0,0.0002,2]
[358969453,1745594708686,10000.0,0.0002,2]
[358969454,1745594708710,10000.0,0.0002,2]
[358969455,1745594708734,10000.0,0.0002,2]
[358969456,1745594708758,10000.0,0.0002,2]
[358969457,1745594708781,10000.0,0.0002,2]
[358969458,1745594708805,10000.0,0.0002,2]
[358969459,1745594708836,10000.0,0.0002,2]
[358969460,1745594708865,10000.0,0.0002,2]
[358969461,1745594708896,10000.0,0.0002,2]
[358969462,1745594708926,10000.0,0.0002,2]
[358969463,1745594708955,10000.0,0.0002,2]
[358969464,1745594708982,10000.0,0.0002,2]
[358969465,1745594709009,10000.0,0.0002,2]
[358969466,1745594709035,10000.0,0.0002,2]
[358969467,1745594709061,10000.0,0.0002,2]
[358969468,1745594709088,10000.0,0.0002,2]
[358969469,1745594709116,10000.0,0.0002,2]
[358969470,1745594709149,10000.0,0.0002,2]
[358969471,1745594709179,10000.0,0.0002,2]
[358969472,1745594709209,10000.0,0.0002,2]
[358969473,1745594709240,10000.0,0.0002,2]
[358969474,1745594709278,10000.0,0.0002,2]
[358969475,1745594709307,10000.0,0.0002,2]
[358969476,1745594709337,10000.0,0.0002,2]
[358969477,1745594709371,10000.0,0.0002,2]
[358969478,1745594709406,10000.0,0.0002,2]
[358969479,1745594709441,10000.0,0.0002,2]
[358969480,1745594709471,10000.0,0.0002,2]
[358969481,1745594709500,10000.0,0.0002,2]
[358969482,1745594709528,10000.0,0.0002,2]
[358969483,1745594709557,10000.0,0.0002,2]
[358969484,1745594709585,10000.0,0.0002,2]
[358969485,1745594709618,68993.26189752,0.0002,2]
[358969486,1745594709647,100000.0,0.0002,2]
[358969487,1745594709673,100000.0,0.0002,2]
[358969488,1745594709703,10000.0,0.0002,2]
[358969489,1745594709730,10000.0,0.0002,2]
[358969490,1745594709757,10000.0,0.0002,2]
[358969491,1745594709786,10000.0,0.0002,2]
[358969492,1745594709815,10000.0,0.0002,2]
[358969493,1745594709843,10000.0,0.0002,2]
[358969494,1745594709870,10000.0,0.0002,2]
[358969495,1745594709898,10000.0,0.0002,2]
[358969496,1745594709941,10000.0,0.0002,2]
[358969497,1745594709971,10000.0,0.0002,2]
[358969498,1745594710003,10000.0,0.0002,2]
[358969499,1745594710031,10000.0,0.0002,2]
[358969500,1745594710059,10000.0,0.0002,2]
[358969501,1745594710087,10000.0,0.0002,2]
[358969502,1745594710115,10000.0,0.0002,2]
[358969503,1745594710148,10000.0,0.0002,2]
[358969504,1745594710176,10000.0,0.0002,2]
[358969505,1745594710210,1912.0,0.0002,2]
[358969506,1745594710575,-249.62840221,0.0002,2]
[358969507,1745594715485,-150.0,0.0002,2]
[358969508,1745594721017,196.0,0.000378,60]
[358969509,1745594725767,-358.02730482,0.0002,2]
[358969510,1745594730639,-300.0,0.000199,2]
[358969511,1745594734702,-200.0,0.000199,2]
[358969512,1745594736235,5081.11506514,9e-05,2]
[358969513,1745594754903,10220.19671165,6.94e-05,2]
[358969514,1745594755788,-200.0,0.0001983,2]
[358969515,1745594759612,-2582.53379251,0.0001983,2]
[358969516,1745594759634,-7417.46620749,0.000199,2]
[358969517,1745594760148,-307.733003,0.000198,2]
[358969519,1745594760173,-405.8594487,0.000199,2]
[358969520,1745594767758,-161.33106,0.000199,2]
[358969522,1745594772411,-152.0,0.00019863,2]
[358969523,1745594775918,-207.83288531,0.00019863,2]
[358969524,1745594781632,-385.95249472,0.00019863,2]
[358969525,1745594784860,-152.0,0.00019863,2]
[358969526,1745594790133,-195.89,0.00019863,2]
[358969527,1745594794140,-303.11369379,0.00019863,2]
[358969528,1745594799700,-200.0,0.00019863,2]
[358969529,1745594804589,-178.68420621,0.00019863,2]
[358969530,1745594808371,-150.0,0.00019863,2]
[358969537,1745594843755,-150.0,0.00019763,2]
[358969540,1745594854252,-409.64707758,0.00019763,2]
[358969541,1745594858019,-122.15082242,0.00019763,2]
[358969542,1745594858042,-495.08074267,0.00019863,2]
[358969543,1745594861470,-2228.4459773,0.00019863,2]
[358969544,1745594861495,-4983.09173191,0.000199,2]
[358969545,1745594861519,-508.35281138,0.000199,2]
[358969546,1745594861542,-693.80364872,0.000199,2]
[358969547,1745594861565,-693.80364872,0.000199,2]
[358969548,1745594861587,-502.5045184,0.00019973,2]
[358969549,1745594861610,-500.0,0.00019973,2]
[358969550,1745594861631,-494.35800091,0.00019973,2]
[358969551,1745594861659,-400.02153523,0.00019973,2]
[358969552,1745594861681,-850.0,0.00019998,2]
[358969553,1745594861708,-580.7180638,0.00019999,2]
[358969554,1745594861729,-39530.71,0.00019999,2]
[358969555,1745594861752,-177.55617179,0.00019999,2]
[358969556,1745594861775,-174.35882293,0.00019999,2]
[358969557,1745594861798,-168.22747536,0.00019999,2]
[358969558,1745594861822,-397.4637131,0.00019999,2]
[358969559,1745594861843,-162.41979118,0.00019999,2]
[358969560,1745594861867,-258954.16408927,0.0002,2]
[358969561,1745594877209,602.38291026,0.0002,4]
[358969562,1745594881099,2793.21211769,0.000378,60]
[358969563,1745594899013,-300.0,0.00019999,2]
[358969564,1745594899037,-300.0,0.00019999,2]
[358969565,1745594899061,-231.5730995,0.00019999,2]
[358969566,1745594899087,-589168.4269005,0.0002,2]
[358969571,1745594918576,4077.1184434,0.000151,2]
[358969572,1745594920050,-227.24332395,0.000199,2]
[358969574,1745594923442,-200.0,0.000199,2]
[358969575,1745594926326,-300.0,0.000199,2]
[358969576,1745594929449,-11219.57937462,0.000199,2]
[358969577,1745594929475,-4760.34730613,0.000199,2]
[358969578,1745594929500,-278.22459917,0.00019999,2]
[358969579,1745594929527,-692741.84872008,0.0002,2]
[358969586,1745594959174,-330.23165471,0.00019999,2]
[358969587,1745594959197,-300.0,0.00019999,2]
[358969588,1745594959220,-715169.76834529,0.0002,2]
[358969589,1745594999723,-6321.48978867,0.000199,2]
[358969590,1745594999747,-164678.51021133,0.0002,2]
[358969591,1745595011928,-150.0,0.00019899,2]
[358969592,1745595014464,-150.0,0.00019899,2]
[358969593,1745595014488,-113.09905844,0.000199,2]
[358969613,1745595032453,-292.49349012,0.000199,2]
[358969614,1745595032466,-33.11263947,0.000199,2]
[358969615,1745595032476,-1030.33245447,0.000199,2]
[358969616,1745595032603,-4630.02582,0.000199,2]
[358969620,1745595032751,-79151.62844178,0.000199,2]
[358969623,1745595032761,-187.85822439,0.000199,2]
[358969625,1745595032771,-629.68015107,0.0001998,2]
[358969627,1745595032781,-165.87,0.0001999,2]
[358969629,1745595032791,-165.87,0.0001999,2]
[358969631,1745595032801,-165.87,0.0001999,2]
[358969633,1745595032811,-165.87,0.0001999,2]
[358969635,1745595032821,-165.87,0.0001999,2]
[358969637,1745595032831,-165.87,0.0001999,2]
[358969639,1745595032840,-1200.0,0.00019999,2]
[358969641,1745595032850,-159.0,0.00019999,2]
[358969643,1745595032859,-194.75721942,0.00019999,2]
[358969644,1745595032869,-27083.52872355,0.0002,2]
[358969693,1745595033540,-40965.87001697,0.0002,2]
[358969764,1745595037442,-1559880.35,0.0002,2]
[358969770,1745595038582,-2439.37847372,0.0002,2]
[358969771,1745595038726,-216.0814597,0.0002,2]
[358969772,1745595038737,-268769.01960298,0.0002,2]
[358969773,1745595038747,-5397.0,0.0002,2]
[358969774,1745595038756,-1258460.32476927,0.0002,2]
[358969775,1745595038767,-2467003.98865408,0.0002,2]
[358969782,1745595040639,-449.49720799,0.0002,2]
[358969783,1745595040700,-222890.12179959,0.0002,2]
[358969784,1745595040712,-5015.92015998,0.0002,2]
[358969785,1745595040740,-1049.215371,0.0002,2]
[358969786,1745595040751,-1624.015,0.0002,2]
[358969811,1745595041611,-331.94636898,0.0002,2]
[358969812,1745595041918,-1093.74081644,0.0002,2]
[358969813,1745595041931,-5432.81606621,0.0002,2]
[358969814,1745595042134,-2490.76735347,0.0002,2]
[358969815,1745595042235,-85842.02989887,0.0002,2]
[358969824,1745595043565,-1828.1263,0.000199,2]
[358969825,1745595043618,-291.3371,0.000199,2]
[358969826,1745595043656,-1193.4247099,0.000199,2]
[358969827,1745595043668,-369.57250999,0.0001999,2]
[358969828,1745595043678,-369.57250999,0.0001999,2]
[358969829,1745595043688,-369.57250999,0.0001999,2]
[358969830,1745595043697,-439197.85776015,0.0002,2]
[358969831,1745595043714,-800.82437286,0.0002,2]
[358969832,1745595043748,-528.38068863,0.0002,2]
[358969833,1745595043760,-2252.87192783,0.0002,2]
[358969834,1745595043879,-2908.069,0.0002,2]
[358969836,1745595044359,-200.37885882,0.0002,2]
[358969837,1745595045118,-200.37885882,0.0002,2]
[358969842,1745595046441,-178.61948714,0.000199,2]
[358969843,1745595046451,-172.2881869,0.0002,2]
[358969844,1745595046463,-1282.49419878,0.0002,2]
[358969845,1745595046563,-8182.08608662,0.000199,2]
[358969846,1745595046608,-302.20031666,0.000199,2]
[358969847,1745595046617,-1441.14018146,0.0002,2]
[358969848,1745595046651,-14686.62215781,0.0002,2]
[358969849,1745595046731,-1178.14618991,0.0002,2]
[358969912,1745595064450,-500.0,0.00019899,2]
[358969913,1745595064479,-401.39584113,0.00019899,2]
[358969914,1745595064519,-501.76483998,0.00019899,2]
[358969915,1745595064549,-500.0,0.00019899,2]
[358969916,1745595064580,-1698.563055,0.000199,2]
[358969917,1745595064609,-300.0,0.00019999,2]
[358969918,1745595064639,-509.82349987,0.00019999,2]
[358969919,1745595064662,-500.0,0.0002,2]
[358969920,1745595064684,-401.39584113,0.0002,2]
[358969921,1745595064736,-501.76483998,0.0002,2]
[358969922,1745595064762,-500.0,0.0002,2]
[358969923,1745595064779,-1698.563055,0.0002,2]
[358969924,1745595064802,-300.0,0.0002,2]
[358969925,1745595064824,-509.82349987,0.0002,2]
[358969926,1745595064836,-1440132.90552804,0.0002,2]
[358969927,1745595069467,-696400.0,0.0002,2]
[358969928,1745595124301,-11341.0,0.00019973,2]
[358969929,1745595124325,-606.0,0.00019973,2]
[358969930,1745595124350,-93429.03887498,0.0002,2]
[358969931,1745595124373,-847.59159172,0.0002,2]
[358969932,1745595124395,-151.0,0.0002,2]
[358969933,1745595299517,204.37,0.00030697,120]
[358969934,1745595370265,2162.36247905,0.00019976,2]
[358969935,1745595382442,250.0,0.00017,2]
[358969936,1745595383517,300.0,0.00019,2]
[358969937,1745595430601,2979.744,0.00037808,60]
[358969939,1745595692928,216.93,0.00037808,60]
[358969940,1745595789174,471.34901663,0.00019651,2]
[358969941,1745595789492,471.34901664,0.00019964,2]
[358969947,1745596135392,2403436.0,0.00037808,60]
[358969949,1745596227410,1547.46,0.000378,120]
[358969951,1745596231667,-350.0,0.00021,2]
[358969952,1745596231678,-450.0,0.00021948,2]
[358969953,1745596231692,-350.0,0.00021948,2]
[358969954,1745596231704,-658.88173896,0.00021948,2]
[358969955,1745596231714,-250.0,0.0002197,2]
[358969956,1745596231723,-200.0,0.0002197,2]
[358969957,1745596231734,-250.0,0.00021999,2]
[358969958,1745596231744,-200.0,0.00021999,2]
[358969959,1745596231754,-651.91828104,0.00022,7]
[358969960,1745596231766,-112.39049027,0.00022,7]
[358969961,1745596231776,-200.0,0.00022638,2]
[358969962,1745596231785,-170.61,0.00022687,2]
[358969963,1745596231795,-144.68159467,0.00023,2]
[358969964,1745596231809,-255.31840533,0.00023,2]
[358969965,1745596231818,-204.12,0.000233,2]
[358969966,1745596231829,-473.6668589,0.000235,2]
[358969967,1745596231839,-1200.0,0.00023596,2]
[358969968,1745596231849,-300.0,0.00023597,2]
[358969969,1745596231859,-150.99,0.00023598,2]
[358969970,1745596231868,-2157.27,0.00023598,2]
[358969971,1745596231878,-235.06,0.00023598,2]
[358969972,1745596231887,-179.0,0.00024889,2]
[358969973,1745596231897,-1807.37846937,0.00024889,2]
[358969974,1745596231913,-974.83430089,0.00024889,2]
[358969975,1745596231923,-493.07198842,0.0002489,2]
[358969976,1745596231933,-47869.03331323,0.0002489,2]
[358969977,1745596231942,-172.60315387,0.0002489,2]
[358969978,1745596231952,-509.38266794,0.000249,2]
[358969979,1745596231962,-676.18405594,0.000249,5]
[358969981,1745596231973,-150.0,0.00025354,7]
[358969983,1745596231982,-676.18405587,0.00025486,6]
[358969985,1745596231992,-420.0,0.000256,2]
[358969987,1745596232002,-1680.0,0.00025717,2]
[358969989,1745596232012,-257.85452056,0.00026072,6]
[358969991,1745596232027,-418.32953531,0.00026072,6]
[358969993,1745596232037,-676.18405587,0.00026659,6]
[358969995,1745596232047,-1430.26,0.00026927,2]
[358969998,1745596232057,-676.18405587,0.00027245,7]
[358970000,1745596232067,-587.0,0.00027773,2]
[358970003,1745596232077,-676.18405587,0.00027831,7]
[358970006,1745596232087,-285.83,0.00027851,2]
[358970009,1745596232097,-2060.75,0.00027913,2]
[358970012,1745596232106,-161.19,0.00028017,2]
[358970015,1745596232116,-2351.0,0.00028029,2]
[358970018,1745596232126,-4000.0,0.00028069,2]
[358970021,1745596232136,-1000.0,0.00028286,2]
[358970024,1745596232146,-150.0,0.00028303,2]
[358970027,1745596232157,-348.99,0.00028305,2]
[358970030,1745596232167,-676.18405587,0.00028417,8]
[358970032,1745596232176,-1513.47,0.00028439,2]
[358970035,1745596232186,-365.0,0.0002851,30]
[358970038,1745596232196,-1312.4,0.00028598,2]
[358970041,1745596232207,-183.5,0.0002867,2]
[358970043,1745596232219,-426.51,0.00028688,2]
[358970045,1745596232228,-3091.64,0.00028891,2]
[358970047,1745596232239,-676.18405587,0.00029003,8]
[358970049,1745596232249,-1430.26,0.00029191,2]